bitfinex/quotes_SOLUSD_20241029
["timestamp","ask_amount","ask_price","bid_price","bid_amount"]
[1730229782702,43.72615648,179.16,179.12,20.12549]
[1730229783016,43.72615648,179.17,179.14,0.12549]
[1730229783407,44.30391038,179.18,179.14,0.12549]
[1730229783722,0.5777539,179.18,179.16,43.85164648]
[1730229784019,0.5777539,179.18,179.17,0.12549]
[1730229784221,44.30391038,179.18,179.17,0.12549]
[1730229784428,0.5777539,179.18,179.17,0.12549]
[1730229784733,0.5777539,179.18,179.16,0.12549]
[1730229784948,0.5777539,179.18,179.17,63.85164648]
[1730229785093,43.72615648,179.23,179.18,20.0]
[1730229785297,43.72615648,179.23,179.18,27.03379147]
[1730229785501,43.72615648,179.19,179.18,7.03379147]
[1730229785723,43.72615648,179.22,179.18,7.03379147]
[1730229786015,43.72615648,179.21,179.18,7.03379147]
[1730229786222,43.72615648,179.2,179.17,0.12549]
[1730229786402,43.72615648,179.21,179.17,0.12549]
[1730229786598,43.72615648,179.22,179.17,43.85164648]
[1730229786929,43.72615648,179.21,179.17,0.12549]
[1730229787224,43.72615648,179.23,179.19,0.12549]
[1730229787423,59.64285648,179.28,179.17,6.90830147]
[1730229787424,43.72615648,179.2,179.17,6.90830147]
[1730229787725,43.72615648,179.21,179.16,0.12549]
[1730229787903,59.64285648,179.28,179.16,0.12549]
[1730229787904,43.72615648,179.23,179.18,20.12549]
[1730229788245,43.72615648,179.23,179.18,27.03379147]
[1730229788719,43.72615648,179.19,179.14,20.0]
[1730229789105,43.72615648,179.2,179.14,43.72615648]
[1730229789309,43.72615648,179.16,179.12,20.0]
[1730229789613,43.72615648,179.16,179.11,50.63445795]
[1730229789820,43.72615648,179.15,179.11,6.90830147]
[1730229790122,43.72615648,179.13,179.11,6.90830147]
[1730229790297,43.72615648,179.12,179.11,6.90830147]
[1730229790496,43.72615648,179.12,179.04,57.05015795]
[1730229790795,43.72615648,179.1,179.05,6.90830147]
[1730229791001,0.1,179.15,179.05,6.90830147]
[1730229791002,43.72615648,179.09,179.05,6.90830147]
[1730229791202,43.72615648,179.11,179.06,5.554]
[1730229791401,43.72615648,179.1,179.06,5.554]
[1730229791702,43.72615648,179.07,179.02,20.0]
[1730229791919,0.1,179.15,179.07,6.90830147]
[1730229792223,0.1,179.14,179.02,12.46230147]
[1730229792413,43.72615648,179.06,179.02,12.46230147]
[1730229792620,43.72615648,179.05,179.02,7.00830147]
[1730229792803,43.72615648,179.03,179.02,6.90830147]
[1730229793119,43.72615648,179.03,178.98,5.554]
[1730229793333,43.72615648,179.03,178.99,0.1]
[1730229793495,43.72615648,179.05,178.99,50.73445795]
[1730229793696,43.72615648,179.04,178.99,7.00830147]
[1730229793921,43.72615648,179.03,178.99,7.00830147]
[1730229794336,43.72615648,179.0,178.99,6.90830147]
[1730229794623,43.72615648,179.0,178.93,6.90830147]
[1730229794805,43.72615648,178.99,178.94,0.1]
[1730229794996,43.72615648,178.99,178.83,296.72615648]
[1730229794997,43.82615648,179.01,178.96,5.7178806]
[1730229795202,43.72615648,178.97,178.96,5.7178806]
[1730229795717,43.72615648,178.97,178.91,6.90830147]
[1730229796028,43.72615648,178.93,178.87,43.82615648]
[1730229796228,43.72615648,178.94,178.91,0.1]
[1730229796521,43.72615648,178.94,178.91,6.90830147]
[1730229796698,43.72615648,178.95,178.91,7.00830147]
[1730229796901,43.72615648,178.98,178.92,43.95164648]
[1730229797109,43.72615648,178.99,178.94,43.72615648]
[1730229797302,15.3201,179.04,178.95,50.75994795]
[1730229797510,43.72615648,179.02,178.96,43.85164648]
[1730229797720,43.72615648,179.03,178.98,20.12549]
[1730229797928,43.72615648,179.03,178.98,27.03379147]
[1730229798414,43.72615648,179.01,178.98,27.03379147]
[1730229798725,43.72615648,178.99,178.98,0.12549]
[1730229798930,43.72615648,178.99,178.95,0.12549]
[1730229799805,43.72615648,178.98,178.95,0.12549]
[1730229800809,43.72615648,178.99,178.95,0.12549]
[1730229801016,43.72615648,179.0,178.95,7.03379147]
[1730229801213,43.72615648,179.06,178.99,43.72615648]
[1730229801533,43.72615648,179.07,179.02,63.85164648]
[1730229801733,43.72615648,179.09,179.05,20.12549]
[1730229802032,59.72405648,179.1,179.07,20.0]
[1730229802212,15.9979,179.1,179.07,20.0]
[1730229802528,43.72615648,179.13,179.08,0.12549]
[1730229802904,43.72615648,179.14,179.1,0.12549]
[1730229803342,16.2064,179.16,179.1,0.12549]
[1730229803343,43.72615648,179.15,179.1,0.12549]
[1730229803538,16.2064,179.16,179.09,63.72615648]
[1730229803539,43.72615648,179.13,179.09,0.12549]
[1730229804635,43.72615648,179.1,179.09,0.12549]
[1730229804830,43.72615648,179.1,179.06,20.12549]
[1730229805218,43.72615648,179.07,179.06,0.12549]
[1730229805420,43.72615648,179.07,178.99,27.80517422]
[1730229805421,0.1,179.11,179.02,0.1]
[1730229805635,0.1,179.11,178.97,27.95594398]
[1730229805636,43.72615648,179.1,179.04,43.72615648]
[1730229806018,43.72615648,179.11,179.06,43.72615648]
[1730229806432,43.72615648,179.11,179.05,43.72615648]
[1730229806640,43.72615648,179.1,179.07,0.12549]
[1730229806839,43.72615648,179.1,179.06,0.12549]
[1730229807953,43.82615648,179.07,178.97,43.82615648]
[1730229808128,43.72615648,179.02,178.97,43.72615648]
[1730229808331,43.72615648,179.0,178.94,43.82615648]
[1730229808550,43.72615648,179.0,178.97,6.90830147]
[1730229808756,43.72615648,179.02,178.97,6.90830147]
[1730229809042,43.72615648,179.1,178.98,43.72615648]
[1730229809043,43.72615648,179.03,178.98,43.72615648]
[1730229809213,43.72615648,179.03,178.98,6.90830147]
[1730229809418,43.72615648,179.03,178.99,20.12549]
[1730229809635,43.72615648,179.1,178.98,6.90830147]
[1730229809636,43.72615648,179.02,178.98,6.90830147]
[1730229809833,43.72615648,179.0,178.98,6.90830147]
[1730229810049,43.72615648,178.99,178.9,43.72615648]
[1730229810228,43.72615648,178.99,178.94,43.72615648]
[1730229810419,43.72615648,179.0,178.95,6.90830147]
[1730229810619,43.72615648,178.99,178.95,6.90830147]
[1730229811152,43.72615648,179.0,178.96,5.7147652]
[1730229811460,43.72615648,179.0,178.97,20.0]
[1730229811461,0.1,179.0,178.97,20.0]
[1730229811646,0.1,178.99,178.91,43.72615648]
[1730229811843,0.1,178.99,178.91,50.63445795]
[1730229812050,0.1,178.99,178.91,56.35199474]
[1730229812631,0.1,178.99,178.93,43.72615648]
[1730229812869,0.1,178.99,178.94,6.90830147]
[1730229813056,0.1,178.95,178.91,5.71753679]
[1730229813259,0.1,178.95,178.87,7.00830147]
[1730229813560,0.1,178.95,178.91,6.90830147]
[1730229814659,0.1,178.94,178.92,20.0]
[1730229814861,0.1,178.94,178.93,20.0]
[1730229816462,0.1,178.94,178.89,20.0]
[1730229816646,0.1,178.91,178.89,6.90830147]
[1730229816846,0.1,178.91,178.9,6.90830147]
[1730229817360,0.1,178.94,178.9,6.90830147]
[1730229817545,0.1,178.97,178.91,0.12549]
[1730229817743,0.1,178.97,178.92,6.90830147]
[1730229818062,0.1,178.97,178.93,0.12549]
[1730229818363,0.1,178.96,178.95,20.0]
[1730229819237,0.1,178.95,178.88,0.12549]
[1730229819441,0.1,178.95,178.9,6.90830147]
[1730229819662,0.1,178.92,178.9,6.90830147]
[1730229820346,0.1,178.9,178.87,5.71469861]
[1730229820547,0.1,178.91,178.87,5.71469861]
[1730229820749,0.1,178.9,178.87,49.44085509]
[1730229821071,0.1,178.95,178.89,43.72615648]
[1730229821366,0.1,178.96,178.9,43.72615648]
[1730229821554,0.1,178.95,178.91,63.72615648]
[1730229821760,0.1,178.95,178.92,0.12549]
[1730229822460,16.0733,179.03,178.9,0.12549]
[1730229822461,0.0657,178.93,178.9,0.12549]
[1730229822768,0.06569997,178.93,178.9,0.12549]
[1730229823359,0.06569997,178.92,178.9,20.12549]
[1730229823560,0.06569997,178.94,178.9,20.12549]
[1730229823756,0.06569997,178.94,178.9,63.85164648]
[1730229824153,0.06569997,178.94,178.91,43.72615648]
[1730229824351,0.06569997,178.94,178.92,0.12549]
[1730229824554,0.06569997,178.88,178.87,5.71469861]
[1730229824744,15.9612,178.9,178.76,27.34055093]
[1730229824745,0.06569997,178.82,178.77,26.97658116]
[1730229824944,0.06569997,178.82,178.81,5.71778801]
[1730229825270,0.06569997,178.82,178.77,26.97658116]
[1730229825450,0.06569997,178.82,178.78,5.71768107]
[1730229826163,0.06569997,178.81,178.79,0.12549]
[1730229826337,0.06569997,178.81,178.78,5.71768107]
[1730229826542,43.86854401,178.79,178.78,5.71768107]
[1730229826743,0.06569997,178.74,178.73,0.5777539]
[1730229826964,0.06569997,178.78,178.73,44.44629791]
[1730229827267,0.06569997,178.79,178.76,43.86854401]
[1730229827475,0.06569997,178.79,178.77,50.08567882]
[1730229827766,0.06569997,178.78,178.75,43.86854401]
[1730229827945,0.06569997,178.78,178.77,43.86854401]
[1730229828148,0.06569997,178.77,178.75,6.21713481]
[1730229828347,0.06569997,178.77,178.75,50.08567882]
[1730229828643,0.06569997,178.79,178.76,43.86854401]
[1730229828843,0.06569997,178.79,178.78,43.86854401]
[1730229829350,0.06569997,178.8,178.78,43.86854401]
[1730229829578,0.06569997,178.8,178.78,43.99403401]
[1730229830076,0.06569997,178.8,178.79,20.0]
[1730229830258,0.06569997,178.81,178.79,63.86854401]
[1730229830456,0.06569997,178.82,178.8,63.86854401]
[1730229830765,0.06569997,178.84,178.82,0.12549]
[1730229830967,0.06569997,178.84,178.83,63.99403401]
[1730229831467,15.9612,178.9,178.84,20.0]
[1730229831468,0.06569997,178.86,178.84,20.0]
[1730229831660,0.06569997,178.85,178.84,63.99403401]
[1730229831968,0.06569997,178.86,178.85,0.12549]
[1730229832165,0.06569997,178.86,178.85,43.99403401]
[1730229832371,0.06569997,178.87,178.86,20.0]
[1730229832752,0.06569997,178.87,178.86,63.86854401]
[1730229833765,0.06569997,178.87,178.86,63.99403401]
[1730229834171,0.06569997,178.87,178.84,20.0]
[1730229835772,0.06569997,178.87,178.83,43.86854401]
[1730229835773,0.06569997,178.83,178.82,63.99403401]
[1730229836255,0.06569997,178.83,178.81,63.86854401]
[1730229836766,0.06569997,178.83,178.82,63.86854401]
[1730229837179,0.06569997,178.83,178.82,20.0]
[1730229837663,0.06569997,178.83,178.82,63.86854401]
[1730229837858,0.06569997,178.93,178.84,20.12549]
[1730229838080,0.06569997,178.95,178.93,20.12549]
[1730229838278,0.06569997,178.95,178.94,71.22227993]
[1730229838779,0.06569997,178.98,178.95,20.0]
[1730229838956,0.06569997,178.98,178.97,63.99403401]
[1730229839157,0.06569997,178.98,178.97,20.0]
[1730229839361,0.06569997,178.98,178.97,63.86854401]
[1730229839762,0.06569997,178.99,178.98,20.0]
[1730229840087,0.06569997,179.0,178.98,63.86854401]
[1730229840378,0.06569997,179.01,179.0,20.12549]
[1730229840594,0.06569997,179.02,179.0,63.99403401]
[1730229840753,0.06569997,179.02,179.01,43.86854401]
[1730229840957,0.06569997,179.02,179.01,63.86854401]
[1730229841675,0.06569997,179.03,179.01,63.86854401]
[1730229841866,0.06569997,179.03,179.02,63.99403401]
[1730229842180,0.06569997,179.05,179.03,0.12549]
[1730229842480,0.06569997,179.09,179.06,0.12549]
[1730229842668,15.3883,179.13,179.09,20.0]
[1730229842669,0.0092,179.13,179.09,20.0]
[1730229842973,0.1,179.19,179.06,0.12549]
[1730229842974,43.86854401,179.18,179.12,63.86854401]
[1730229843185,43.86854401,179.17,179.12,20.0]
[1730229843480,43.86854401,179.18,179.14,20.0]
[1730229843680,6.1368,179.19,179.14,63.86854401]
[1730229843886,43.86854401,179.18,179.14,20.0]
[1730229844378,43.86854401,179.17,179.14,20.0]
[1730229844790,43.86854401,179.18,179.14,20.0]
[1730229844985,6.1368,179.19,179.15,20.0]
[1730229845181,43.86854401,179.17,179.15,20.0]
[1730229845477,43.86854401,179.16,179.15,20.0]
[1730229845666,43.86854401,179.16,179.06,0.12549]
[1730229845667,43.86854401,179.16,179.11,43.86854401]
[1730229845868,43.86854401,179.16,179.12,20.0]
[1730229846473,6.1368,179.19,179.12,0.12549]
[1730229846688,15.4101,179.23,179.19,20.0]
[1730229846891,15.4101,179.23,179.19,63.86854401]
[1730229847174,43.86854401,179.22,179.17,20.0]
[1730229847489,15.4101,179.23,179.18,20.0]
[1730229847490,59.27864401,179.23,179.18,20.0]
[1730229847775,59.27864401,179.23,179.18,63.86854401]
[1730229848183,15.4101,179.23,179.2,20.0]
[1730229849384,50.21084401,179.25,179.2,20.0]
[1730229849685,50.21084401,179.25,179.22,20.0]
[1730229849686,6.3423,179.25,179.22,20.0]
[1730229849984,43.86854401,179.24,179.22,20.0]
[1730229850162,43.86854401,179.23,179.22,20.0]
[1730229850506,43.86854401,179.23,179.16,20.0]
[1730229850674,43.86854401,179.23,179.17,43.86854401]
[1730229850878,6.3423,179.25,179.16,20.0]
[1730229850879,43.86854401,179.21,179.16,20.0]
[1730229851081,43.86854401,179.22,179.18,20.0]
[1730229851389,43.86854401,179.26,179.21,43.86854401]
[1730229851595,6.8539,179.31,179.19,0.12549]
[1730229851596,43.86854401,179.25,179.22,20.0]
[1730229851974,15.9112,179.3,179.19,43.86854401]
[1730229851975,0.2,179.29,179.19,20.0]
[1730229852168,15.7112,179.3,179.24,43.86854401]
[1730229852386,15.7112,179.3,179.22,20.12549]
[1730229852387,15.7112,179.3,179.28,20.0]
[1730229852598,43.86854401,179.33,179.3,20.0]
[1730229852771,26.8468512,179.34,179.3,20.0]
[1730229853384,26.8468512,179.31,179.3,20.0]
[1730229853778,26.8468512,179.32,179.27,46.8468512]
[1730229853978,26.8468512,179.35,179.3,20.0]
[1730229854177,26.8468512,179.34,179.3,20.0]
[1730229854384,26.8468512,179.33,179.3,20.0]
[1730229854580,26.8468512,179.32,179.28,20.0]
[1730229854788,26.8468512,179.32,179.27,20.0]
[1730229854975,26.8468512,179.32,179.28,20.0]
[1730229855593,26.8468512,179.29,179.28,20.0]
[1730229855777,0.1,179.34,179.26,20.0]
[1730229856380,0.1,179.35,179.26,20.0]
[1730229856576,0.1,179.34,179.26,20.0]
[1730229856902,23.1344539,179.36,179.26,46.8468512]
[1730229857090,23.1344539,179.36,179.26,20.0]
[1730229857479,0.1,179.35,179.26,20.0]
[1730229857882,0.1,179.33,179.26,20.0]
[1730229858194,0.1,179.32,179.26,20.0]
[1730229858496,0.1,179.33,179.26,20.0]
[1730229858800,23.1344539,179.36,179.26,20.0]
[1730229859097,23.1344539,179.36,179.28,46.8468512]
[1730229859617,23.4692539,179.36,179.3,20.0]
[1730229859783,16.8153539,179.36,179.3,20.0]
[1730229860380,0.9125539,179.36,179.34,26.84172574]
[1730229860580,0.9125539,179.36,179.35,20.0]
[1730229860996,0.9125539,179.36,179.33,20.0]
[1730229861201,0.9125539,179.36,179.33,46.84172574]
[1730229861686,0.9125539,179.36,179.34,26.96721574]
[1730229861888,0.9125539,179.36,179.35,20.0]
[1730229862299,0.9125539,179.36,179.34,20.12549]
[1730229862501,0.9125539,179.36,179.31,20.0]
[1730229862677,0.9125539,179.36,179.33,26.84172574]
[1730229862878,0.9125539,179.36,179.35,20.0]
[1730229863480,0.9125539,179.36,179.34,20.0]
[1730229864406,0.9125539,179.36,179.29,46.84172574]
[1730229864582,0.9125539,179.36,179.32,20.0]
[1730229864785,0.9125539,179.36,179.32,8.91925511]
[1730229865107,0.9125539,179.36,179.33,7.80457925]
[1730229865400,0.9125539,179.36,179.3,26.84172574]
[1730229865613,0.9125539,179.36,179.31,7.80457925]
[1730229866201,0.9125539,179.36,179.32,20.0]
[1730229867412,0.9125539,179.36,179.27,20.0]
[1730229867589,0.9125539,179.36,179.29,20.0]
[1730229868290,1.0125539,179.36,179.29,20.0]
[1730229868711,1.0125539,179.36,179.28,7.80457925]
[1730229870016,0.1,179.35,179.29,20.0]
[1730229870213,16.3553,179.34,179.29,20.0]
[1730229870602,0.1,179.33,179.28,7.80457925]
[1730229870787,0.1,179.32,179.26,7.68303556]
[1730229871615,0.1,179.33,179.26,7.68303556]
[1730229871908,0.1,179.27,179.14,253.0]
[1730229872091,0.1,179.27,179.14,260.80457925]
[1730229872410,0.2,179.32,179.17,26.84172574]
[1730229872592,0.2,179.32,179.18,7.80457925]
[1730229872791,0.2,179.32,179.19,0.17015791]
[1730229872993,0.1,179.32,179.2,7.80457925]
[1730229873189,0.1,179.3,179.2,7.80457925]
[1730229873408,0.1,179.29,179.21,0.03344481]
[1730229873601,0.1,179.29,179.21,20.0]
[1730229874120,0.1,179.28,179.21,20.0]
[1730229874695,0.1,179.26,179.14,253.0]
[1730229874894,6.2955,179.25,179.11,7.80457925]
[1730229875107,6.2955,179.25,179.15,7.80457925]
[1730229876221,6.2955,179.25,179.16,20.0]
[1730229876692,6.1955,179.25,179.16,20.0]
[1730229876889,6.2955,179.25,179.16,7.80457925]
[1730229877094,0.1,179.24,179.17,20.0]
[1730229878292,6.1955,179.25,179.17,20.0]
[1730229878491,0.1,179.24,179.17,20.0]
[1730229878711,6.1955,179.25,179.17,20.0]
[1730229878899,0.1,179.24,179.17,20.0]
[1730229879104,6.1955,179.25,179.17,20.0]
[1730229879315,6.2955,179.25,179.17,20.0]
[1730229879518,6.1955,179.25,179.17,20.0]
[1730229880015,6.1955,179.25,179.19,20.0]
[1730229880200,6.309,179.3,179.2,0.12549]
[1730229880511,6.309,179.3,179.21,20.0]
[1730229880812,6.309,179.3,179.23,20.0]
[1730229881390,16.3553,179.34,179.23,20.0]
[1730229881702,0.3348,179.3,179.24,0.12549]
[1730229882801,0.3348,179.3,179.17,51.58146325]
[1730229882999,0.5348,179.3,179.17,27.80457925]
[1730229883201,0.2,179.29,179.17,7.80457925]
[1730229883419,0.1,179.26,179.15,258.69681942]
[1730229883614,0.1,179.26,179.16,0.1701864]
[1730229883912,0.1,179.26,179.16,0.17017691]
[1730229884415,0.3348,179.3,179.16,0.17017691]
[1730229884416,0.4348,179.3,179.17,7.80457925]
[1730229884712,0.1,179.29,179.18,20.0]
[1730229884917,0.1,179.29,179.19,7.93006925]
[1730229885217,0.1,179.29,179.2,20.0]
[1730229885519,0.3348,179.3,179.2,20.0]
[1730229886019,0.1,179.29,179.2,20.0]
[1730229886601,0.4348,179.3,179.2,20.0]
[1730229887513,0.3348,179.3,179.2,20.0]
[1730229887825,0.3348,179.3,179.22,20.0]
[1730229887995,0.3348,179.3,179.23,7.93006925]
[1730229888196,0.3348,179.3,179.24,20.0]
[1730229888421,0.3348,179.3,179.24,7.80457925]
[1730229888721,0.3348,179.3,179.25,20.0]
[1730229889306,0.4348,179.3,179.17,7.93006925]
[1730229889494,0.4348,179.3,179.19,0.12549]
[1730229889916,0.4348,179.3,179.19,7.93006925]
[1730229890113,0.1,179.29,179.19,7.93006925]
[1730229890530,0.4348,179.3,179.19,7.93006925]
[1730229890821,0.1,179.29,179.19,7.80457925]
[1730229891027,0.5348,179.3,179.19,7.80457925]
[1730229891222,0.3348,179.3,179.2,20.0]
[1730229891427,0.1,179.29,179.22,20.0]
[1730229891618,0.09999991,179.29,179.23,7.80457925]
[1730229891933,0.09999991,179.31,179.24,20.0]
[1730229892102,16.55529991,179.34,179.24,20.0]
[1730229892304,16.3553,179.34,179.24,27.80457925]
[1730229892503,0.09999991,179.32,179.18,20.0]
[1730229892802,16.3553,179.34,179.17,26.84172574]
[1730229892803,0.09999991,179.31,179.21,0.12549]
[1730229893312,0.09999991,179.3,179.2,20.0]
[1730229894098,0.09999988,179.3,179.2,20.0]
[1730229894404,0.41645252,179.33,179.21,27.80457925]
[1730229894718,0.09999988,179.32,179.21,27.80457925]
[1730229894928,0.09999988,179.3,179.21,27.80457925]
[1730229895103,0.09999988,179.29,179.21,27.80457925]
[1730229895402,0.1,179.32,179.21,27.80457925]
[1730229895817,0.09999988,179.32,179.21,27.80457925]
[1730229896135,0.31645252,179.33,179.21,27.80457925]
[1730229896327,16.3553,179.34,179.22,0.12549]
[1730229896506,0.09999988,179.33,179.22,7.93006925]
[1730229896709,16.3553,179.34,179.23,27.80457925]
[1730229898524,0.09999988,179.33,179.23,27.80457925]
[1730229898733,0.09999988,179.29,179.16,7.80457925]
[1730229899694,0.09999988,179.29,179.17,5.576]
[1730229899898,0.09999988,179.27,179.17,20.0]
[1730229900209,6.1194,179.26,179.17,20.0]
[1730229900401,16.2185,179.24,179.11,5.69681942]
[1730229900601,16.2185,179.24,179.13,0.17021491]
[1730229901017,16.21849993,179.24,179.13,0.1702054]
[1730229901505,16.21849993,179.24,179.14,0.12549]
[1730229901704,16.21849993,179.24,179.15,0.1701959]
[1730229902120,16.31849981,179.24,179.15,0.1701959]
[1730229902302,0.09999988,179.19,179.08,5.69681942]
[1730229902501,0.09999988,179.14,178.99,26.84172574]
[1730229902725,0.09999988,179.12,178.98,7.80457925]
[1730229902930,0.09999988,179.12,178.99,7.80457925]
[1730229903313,0.09999988,179.11,178.99,7.80457925]
[1730229904003,15.91479988,179.1,178.99,7.80457925]
[1730229904203,15.8148,179.1,178.99,7.80457925]
[1730229905102,15.8148,179.1,179.0,20.0]
[1730229905306,0.3348,179.12,179.02,20.0]
[1730229905513,0.3348,179.12,179.04,20.12549]
[1730229905718,0.3348,179.12,179.04,27.93006925]
[1730229906107,0.3348,179.12,179.06,20.0]
[1730229906324,0.3348,179.12,179.06,27.80457925]
[1730229907313,0.3348,179.12,179.04,0.12549]
[1730229908218,0.3348,179.12,179.04,7.93006925]
[1730229908417,0.3348,179.12,179.05,20.0]
[1730229909230,0.3348,179.12,179.07,0.12549]
[1730229909420,0.3348,179.12,179.08,34.64630499]
[1730229909617,0.3348,179.12,179.09,20.12549]
[1730229909924,0.3348,179.12,179.11,20.12549]
[1730229910112,0.3348,179.12,179.11,27.93006925]
[1730229912212,22.503,179.27,179.11,78.54867899]
[1730229912409,22.503,179.27,179.16,20.12549]
[1730229912725,22.503,179.33,179.2,26.84172574]
[1730229912923,22.503,179.33,179.21,27.93006925]
[1730229913122,22.503,179.33,179.24,20.12549]
[1730229913735,22.503,179.33,179.23,0.12549]
[1730229914043,22.503,179.33,179.24,20.0]
[1730229914233,22.503,179.33,179.24,27.80457925]
[1730229914738,0.5777539,179.36,179.25,0.12549]
[1730229915032,0.5777539,179.36,179.27,20.0]
[1730229915240,0.5777539,179.36,179.28,7.93006925]
[1730229915439,0.5777539,179.36,179.3,0.12549]
[1730229915729,0.5777539,179.36,179.31,27.80457925]
[1730229916154,0.5777539,179.36,179.32,0.12549]
[1730229916446,0.5777539,179.36,179.31,20.0]
[1730229916644,0.5777539,179.36,179.28,20.0]
[1730229917524,0.5777539,179.36,179.23,20.0]
[1730229917724,0.5777539,179.36,179.24,0.12549]
[1730229918155,0.5777539,179.36,179.24,7.80457925]
[1730229918444,0.67775378,179.36,179.24,7.80457925]
[1730229919230,0.5777539,179.36,179.24,7.80457925]
[1730229919447,0.67775378,179.36,179.24,7.80457925]
[1730229919755,0.67775378,179.36,179.25,20.0]
[1730229920053,0.67775378,179.36,179.27,20.0]
[1730229921168,15.7752,179.34,179.23,20.0]
[1730229921445,15.87519988,179.34,179.23,20.0]
[1730229921635,15.7752,179.34,179.23,27.80457925]
[1730229921830,15.87519988,179.34,179.25,20.0]
[1730229922953,15.7752,179.34,179.25,20.0]
[1730229923132,15.87519988,179.34,179.25,20.0]
[1730229923938,0.09999988,179.33,179.22,20.0]
[1730229924146,15.7752,179.34,179.24,20.0]
[1730229924739,15.7752,179.34,179.25,7.93006925]
[1730229925066,15.7752,179.34,179.26,20.0]
[1730229928541,15.7752,179.34,179.26,27.80457925]
[1730229928747,15.7752,179.34,179.21,0.12549]
[1730229928950,15.7752,179.34,179.21,13.50606925]
[1730229929347,15.87519988,179.34,179.21,13.38057925]
[1730229929748,15.87519988,179.34,179.22,7.80457925]
[1730229929956,15.87519988,179.34,179.23,20.0]
[1730229930144,15.7752,179.34,179.23,20.0]
[1730229930341,15.7752,179.34,179.25,20.0]
[1730229930543,0.5777539,179.36,179.27,20.0]
[1730229930758,0.5777539,179.36,179.28,7.93006925]
[1730229930962,0.5777539,179.36,179.29,20.0]
[1730229931166,0.5777539,179.36,179.3,0.12549]
[1730229931461,0.5777539,179.36,179.31,20.0]
[1730229932070,0.5777539,179.36,179.32,20.12549]
[1730229932372,0.5777539,179.36,179.35,20.12549]
[1730229932668,0.5777539,179.36,179.35,21.23991812]
[1730229932871,0.5777539,179.36,179.35,79.66310711]
[1730229933071,0.09999988,179.49,179.35,79.66310711]
[1730229933369,0.31645252,179.53,179.41,20.0]
[1730229933552,0.09999988,179.51,179.41,20.0]
[1730229933951,0.09999988,179.51,179.37,20.12549]
[1730229934148,0.1,179.49,179.37,20.0]
[1730229934348,0.1,179.49,179.3,5.69681942]
[1730229934349,6.1296,179.45,179.31,13.38057925]
[1730229934555,6.22959988,179.45,179.32,0.12549]
[1730229935275,6.1296,179.45,179.34,0.12549]
[1730229935478,6.1296,179.45,179.34,7.93006925]
[1730229935773,6.1296,179.45,179.35,20.0]
[1730229936072,6.22959988,179.45,179.35,20.0]
[1730229936277,6.1296,179.45,179.35,20.0]
[1730229936457,6.1296,179.45,179.35,27.80457925]
[1730229936771,6.1296,179.45,179.3,5.69681942]
[1730229936772,6.1296,179.45,179.37,20.0]
[1730229936972,6.1296,179.45,179.37,27.80457925]
[1730229937372,23.902374,179.54,179.38,0.2]
[1730229937853,23.902374,179.54,179.39,0.1]
[1730229938053,8.3151063,179.55,179.43,0.1]
[1730229939496,23.776884,179.54,179.43,0.1]
[1730229939676,23.776884,179.54,179.41,20.0]
[1730229939993,0.12549,179.53,179.4,0.1]
[1730229940173,0.12549,179.53,179.39,0.1]
[1730229940363,23.776884,179.51,179.39,0.1]
[1730229940568,23.776884,179.51,179.38,0.1]
[1730229941090,8.3151063,179.55,179.45,0.1]
[1730229941265,8.3151063,179.55,179.46,0.1]
[1730229941769,8.3151063,179.55,179.45,0.1]
[1730229941988,8.3151063,179.55,179.45,20.1]
[1730229942205,8.3151063,179.55,179.49,0.1]
[1730229942382,8.3151063,179.55,179.5,0.1]
[1730229943079,8.3151063,179.55,179.48,0.1]
[1730229943080,8.3151063,179.55,179.49,0.1]
[1730229943286,8.3151063,179.55,179.48,0.1]
[1730229943287,8.3151063,179.55,179.48,0.2]
[1730229943485,8.3151063,179.55,179.49,0.1]
[1730229943683,8.3151063,179.55,179.5,0.1]
[1730229944769,8.3151063,179.55,179.51,0.1]